Workbook

Sheet Resumo
A6: Contratação dos serviços de auxiliar de limpeza, copeira, auxiliar de manutenção predial e assistente administrativo para apoio ao Centro de Controle e Operação do PISF - AD/GOI/CCO, localizado em Salgueiro/PE
A10: PLANILHA DE CUSTOS E FORMAÇÃO DE PREÇOS
A11: INSTRUÇÃO NORMATIVA Nº 05 DE 25/05/17 E Nº 07 DE 20/09/2018 - SLTI/MPOG
A15: ANEXO I - A: QUADRO RESUMO DE FORMAÇÃO DE PREÇOS
A18: POSTOS | C18: Nº de Postos | D18: Valor do Posto | E18: Valor Mensal
A19: ITEM | B19: DESCRIÇÃO
A20: 1 | B20: Assistente Administrativo | C20: 2 | D20: =('Planilha Geral'!D137)/C20 -> 3123.37 | E20: =C20*D20 -> 6246.74
A21: 2 | B21: Auxiliar de Limpeza | C21: 1 | D21: =('Planilha Geral'!F137)/C21 -> 3755.73 | E21: =C21*D21 -> 3755.73
A22: 3 | B22: Copeira | C22: 1 | D22: =('Planilha Geral'!H137)/C22 -> 3261.86 | E22: =C22*D22 -> 3261.86
A23: 4 | B23: Auxiliar de Manut. Predial | C23: 1 | D23: =('Planilha Geral'!J137)/C23 -> 3118.56 | E23: 3118.56
A24: TOTAL MENSAL: | E24: =SUM(E20:E23) -> 16382.89
A25: TOTAL 12 MESES: | E25: =SUM(E24*12) -> 196594.68

Sheet Planilha Geral
A4: Contratação dos serviços de auxiliar de limpeza, copeira, auxiliar de manutenção predial e assistente administrativo para apoio ao Centro de Controle e Operação do PISF - AD/GOI/CCO, localizado em Salgueiro/PE
A8: PLANILHA DE CUSTOS E FORMAÇÃO DE PREÇOS
A9: INSTRUÇÃO NORMATIVA Nº 05 DE 25/05/17 E Nº 07 DE 20/09/2018 - SLTI/MPOG
A12: DISCRIMINAÇÃO DOS SERVIÇOS (Dados referentes à contratação)
A13: A | B13: Data de apresentação da proposta (dia/mês/ano) | J13: 2019-05-01
A14: B | B14: Município/UF | J14: Salgueiro-PE
A15: C | B15: Nº de meses de execução contratual | J15: 12 meses
A16: D.1 | B16: Número de Registro no MTE (Ano Acordo, Convenção ou Sentença Normativa em Dissídio Coletivo): | J16: PE000165/2019
A17: D.2 | B17: Data de Registro no MTE (Ano Acordo, Convenção ou Sentença Normativa em Dissídio Coletivo): | J17: 2019-02-19
A20: IDENTIFICAÇÃO DO SERVIÇO E MÃO DE OBRA VINCULADA À EXECUÇÃO CONTRATUAL
A21: Descrição | D21: Assistente Administrativo | F21: Auxiliar de Limpeza | H21: Copeira | J21: Auxiliar de Manut. Predial
A22: Unidade de Medida | D22: und | F22: und | H22: und | J22: und
A23: Quant. Total a contratar (em função da unid. de medida) | D23: 2 | F23: 1 | H23: 1 | J23: 1
A24: Categoria Profissional (vinculada à execução contratual) | D24: 4110-10 | F24: 5143-20 | H24: 5134-25 | J24: 5143-10
A25: Salário Normativo da Categoria (CCT 2019) | D25: 1020.81 | F25: 1020.81 | H25: 1020.81 | J25: 1020.81
A26: Data-Base da Categoria | D26: 2019-01-01 | F26: 2019-01-01 | H26: 2019-01-01 | J26: 2019-01-01
A30: MÓDULO 1: COMPOSIÇÃO DA REMUNERAÇÃO
A31: ITEM | B31: DESCRIÇÃO | C31: Quantidade | D31: =D21 -> Assistente Administrativo | F31: =F21 -> Auxiliar de Limpeza | H31: =H21 -> Copeira | J31: =J21 -> Auxiliar de Manut. Predial
D32: Valor (R$) | F32: Valor (R$) | H32: Valor (R$) | J32: Valor (R$)
D33: Unitário | E33: Total | F33: Unitário | G33: Total | H33: Unitário | I33: Total | J33: Unitário | K33: Total
A34: A | B34: Salário-Base | C34: - | D34: =D25 -> 1020.81 | E34: =$D$23*D34 -> 2041.62 | F34: =F25 -> 1020.81 | G34: =$F$23*F34 -> 1020.81 | H34: =H25 -> 1020.81 | I34: =$F$23*H34 -> 1020.81 | J34: =J25 -> 1020.81 | K34: =$F$23*J34 -> 1020.81
A35: B | B35: Gratificação de Função | C35: - | D35: 0 | E35: =$D$23*D35 -> 0 | F35: 0 | G35: =$F$23*F35 -> 0 | H35: 0 | I35: =$F$23*H35 -> 0 | J35: 0 | K35: =$F$23*J35 -> 0
A36: C | B36: Adicional de Periculosidade | C36: - | D36: =D27 -> 0 | E36: 0 | F36: =F27 -> 0 | G36: 0 | H36: 0 | I36: 0 | J36: =J27 -> 0 | K36: 0
A37: D | B37: Adicional de Insalubridade | C37: - | D37: 0 | E37: 0 | F37: 0 | G37: 0 | H37: 0 | I37: 0 | J37: =J28 -> 0 | K37: 0
A38: E | B38: Adicional Noturno | C38: - | D38: 0 | E38: 0 | F38: 0 | G38: 0 | H38: 0 | I38: 0 | J38: =J29 -> 0 | K38: 0
A39: F | B39: Adicional de Hora Noturna Reduzida | C39: - | D39: 0 | E39: 0 | F39: 0 | G39: 0 | H39: 0 | I39: 0 | J39: =J30 -> 0 | K39: 0
A40: Total - Módulo 1: Composição da Remuneração | E40: =SUM(E34:E39) -> 2041.62 | G40: =SUM(G34:G39) -> 1020.81 | I40: =SUM(I34:I39) -> 1020.81 | K40: =SUM(K34:K39) -> 1020.81
A43: MÓDULO 2: ENCARGOS E BENEFÍCIOS ANUAIS, MENSAIS E DIÁRIOS
A44: ITEM | B44: DESCRIÇÃO | C44: Percentual (%) | D44: =D21 -> Assistente Administrativo | F44: =F21 -> Auxiliar de Limpeza | H44: =H21 -> Copeira | J44: =J21 -> Auxiliar de Manut. Predial
D46: Valor (R$) | F46: Valor (R$) | H46: Valor (R$) | J46: Valor (R$)
A47: 2.1 | B47: 13º (décimo terceiro) Salário, Férias e Adicional de Férias
A48: A | B48: 13º Salário | C48: =1/12 -> 0.0833 | D48: =$C$48*E40 -> 170.07 | F48: =$C$48*G40 -> 85.03 | H48: =$C$48*I40 -> 85.03 | J48: =$C$48*K40 -> 85.03
A49: B | B49: Férias e Adicional de Férias | C49: =1/12 -> 0.0833 | D49: =$C$49*E40 -> 170.07 | F49: =$C$49*G40 -> 85.03 | H49: =$C$49*I40 -> 85.03 | J49: =$C$49*K40 -> 85.03
A50: C | B50: Adicional de Férias - 1/3 Constitucional (Art. 7º CF) | C50: =(1/3)*(1/12) -> 0.0278 | D50: =$C$50*E40 -> 56.76 | F50: =$C$50*G40 -> 28.38 | H50: =$C$50*I40 -> 28.38 | J50: =$C$50*K40 -> 28.38
A51: Total 2.1 (13º Salário, Férias e Adicional de Férias): | E51: =SUM(D48:E50) -> 396.9 | G51: =SUM(F48:G50) -> 198.44 | I51: =SUM(H48:I50) -> 198.44 | K51: =SUM(J48:K50) -> 198.44
A52: 2.2 | B52: Encargos Previdenciários (GPS), Fundo de Garantia por Tempo de Serviço (FGTS) e outras contribuições
A53: A | B53: INSS | C53: 0.2 | D53: =C53*(E40+E51) -> 487.7 | F53: =$C$53*(G40+G51) -> 243.85 | H53: =$C$53*(I40+I51) -> 243.85 | J53: =$C$53*(K40+K51) -> 243.85
A54: B | B54: Salário Educação | C54: 0.025 | D54: =$C$54*(E40+E51) -> 60.96 | F54: =$C$54*(G40+G51) -> 30.48 | H54: =$C$54*(I40+I51) -> 30.48 | J54: =$C$54*(K40+K51) -> 30.48
A55: C | B55: SAT - GIL/RAT | C55: 0.03 | D55: =$C$55*(E40+E51) -> 73.16 | F55: =$C$55*(G40+G51) -> 36.58 | H55: =$C$55*(I40+I51) -> 36.58 | J55: =$C$55*(K40+K51) -> 36.58
A56: D | B56: SESC ou SESI | C56: 0.015 | D56: =$C$56*(E40+E51) -> 36.58 | F56: =$C$56*(G40+G51) -> 18.29 | H56: =$C$56*(I40+I51) -> 18.29 | J56: =$C$56*(K40+K51) -> 18.29
A57: E | B57: SENAI - SENAC | C57: 0.01 | D57: =$C$57*(E40+E51) -> 24.39 | F57: =$C$57*(G40+G51) -> 12.19 | H57: =$C$57*(I40+I51) -> 12.19 | J57: =$C$57*(K40+K51) -> 12.19
A58: F | B58: SEBRAE | C58: 0.006 | D58: =$C$58*(E40+E51) -> 14.63 | F58: =$C$58*(G40+G51) -> 7.32 | H58: =$C$58*(I40+I51) -> 7.32 | J58: =$C$58*(K40+K51) -> 7.32
A59: G | B59: INCRA | C59: 0.002 | D59: =$C$59*(E40+E51) -> 4.88 | F59: =$C$59*(G40+G51) -> 2.44 | H59: =$C$59*(I40+I51) -> 2.44 | J59: =$C$59*(K40+K51) -> 2.44
A60: H | B60: FGTS | C60: 0.08 | D60: =$C$60*(E40+E51) -> 195.08 | F60: =$C$60*(G40+G51) -> 97.54 | H60: =$C$60*(I40+I51) -> 97.54 | J60: =$C$60*(K40+K51) -> 97.54
A61: Total 2.2 (Encargos Previdenciários, FGTS...): | E61: =SUM(D53:E60) -> 897.38 | G61: =SUM(F53:G60) -> 448.69 | I61: =SUM(H53:I60) -> 448.69 | K61: =SUM(J53:K60) -> 448.69
A62: 2.3 | B62: Benefícios Mensais e Diários
A63: A | B63: Vale-Transporte | C63: - | D63: =((22*2*4)*D23)-(6%*E40) -> 229.5 | F63: =((22*2*4)*F23)-(6%*G40) -> 114.75 | H63: =((22*2*4)*H23)-(6%*I40) -> 114.75 | J63: =((22*2*4)*J23)-(6%*K40) -> 114.75
A64: B | B64: Auxílio-Refeição/Alimentação (CCT 2019 -Cláusula 9ª) | C64: - | D64: =(22*7.35)*D23 -> 323.4 | F64: =(22*7.35)*F23 -> 161.7 | H64: =(22*7.35)*H23 -> 161.7 | J64: =(22*7.35)*J23 -> 161.7
A65: C | B65: Benefício Cesta Básica (CCT 2019 -Cláusula 11ª) | C65: - | D65: =100*D23 -> 200 | F65: =100*F23 -> 100 | H65: =100*H23 -> 100 | J65: =100*J23 -> 100
A66: D | B66: Coberturas Sociais (CCT 2019 -Cláusula 19ª) | C66: - | D66: =50*D23 -> 100 | F66: =50*F23 -> 50 | H66: =50*H23 -> 50 | J66: =50*J23 -> 50
A67: Total 2.3 (Benefícios Mensais e Diários): | E67: =SUM(D63:D66) -> 852.9 | G67: =SUM(F63:F66) -> 426.45 | I67: =SUM(H63:H66) -> 426.45 | K67: =SUM(J63:J66) -> 426.45
A68: Total - Módulo 2: Enc. e Benef. Anuais, Mensais e Diários | E68: =E51+E61+E67 -> 2147.18 | G68: =G51+G61+G67 -> 1073.58 | I68: =I51+I61+I67 -> 1073.58 | K68: =K51+K61+K67 -> 1073.58
A71: MÓDULO 3: PROVISÃO PARA RESCISÃO
A72: ITEM | B72: DESCRIÇÃO | C72: Percentual (%) | D72: =D21 -> Assistente Administrativo | F72: =F21 -> Auxiliar de Limpeza | H72: =H21 -> Copeira | J72: =J21 -> Auxiliar de Manut. Predial
D73: Base de Cálculo | E73: Total | F73: Base de Cálculo | G73: Total | H73: Base de Cálculo | I73: Total | J73: Base de Cálculo | K73: Total
A74: Requisitos para Cálculo:
A75: A | B75: Aviso Prévio Indenizado | C75: - | D75: =E40+E51+D60+E67 -> 3486.5 | E75: =D75/12 -> 290.54 | F75: =G40+G51+F60+G67 -> 1743.24 | G75: =F75/12 -> 145.27 | H75: =I40+I51+H60+I67 -> 1743.24 | I75: =H75/12 -> 145.27 | J75: =K40+K51+J60+K67 -> 1743.24 | K75: =J75/12 -> 145.27
A76: B | B76: Multa do FGTS e contribuição social sobre o Aviso Prévio Indenizado | C76: 0.5 | D76: =D60 -> 195.08 | E76: =$C$76*D76 -> 97.54 | F76: =F60 -> 97.54 | G76: =$C$76*F76 -> 48.77 | H76: =H60 -> 97.54 | I76: =$C$76*H76 -> 48.77 | J76: =J60 -> 97.54 | K76: =$C$76*J76 -> 48.77
A77: C | B77: Aviso Prévio Trabalhado | C77: - | D77: =E40+E68 -> 4188.8 | E77: =D77/12 -> 349.07 | F77: =G40+G68 -> 2094.39 | G77: =F77/12 -> 174.53 | H77: =I40+I68 -> 2094.39 | I77: =H77/12 -> 174.53 | J77: =K40+K68 -> 2094.39 | K77: =J77/12 -> 174.53
A78: D | B78: Multa do FGTS e contribuição social sobre o Aviso Prévio Trabalhado | C78: 0.5 | D78: =D60 -> 195.08 | E78: =$C$78*D78 -> 97.54 | F78: =F60 -> 97.54 | G78: =$C$78*F78 -> 48.77 | H78: =H60 -> 97.54 | I78: =$C$78*H78 -> 48.77 | J78: =J60 -> 97.54 | K78: =$C$78*J78 -> 48.77
A79: CUSTOS
A80: E | B80: Custo do Aviso Prévio Indenizado (Calculado sobre A+B) | C80: 0.4546 | D80: =E75+E76 -> 388.08 | E80: =$C$80*D80 -> 176.42 | F80: =G75+G76 -> 194.04 | G80: =$C$80*F80 -> 88.21 | H80: =I75+I76 -> 194.04 | I80: =$C$80*H80 -> 88.21 | J80: =K75+K76 -> 194.04 | K80: =$C$80*J80 -> 88.21
A81: F | B81: Custo do Aviso Prévio Trabalhado (Calculado sobre C+D) | C81: 0.4546 | D81: =E77+E78 -> 446.61 | E81: =$C$81*D81 -> 203.03 | F81: =G77+G78 -> 223.3 | G81: =$C$81*F81 -> 101.51 | H81: =I77+I78 -> 223.3 | I81: =$C$81*H81 -> 101.51 | J81: =K77+K78 -> 223.3 | K81: =$C$81*J81 -> 101.51
A82: G | B82: Custo da Demissão Com Justa Causa (Calculado sobre Módulo 2.1) | C82: 0.0079 | D82: =-E51 -> -396.9 | E82: =$C$82*D82 -> -3.14 | F82: =-G51 -> -198.44 | G82: =$C$82*F82 -> -1.57 | H82: =-I51 -> -198.44 | I82: =$C$82*H82 -> -1.57 | J82: =-K51 -> -198.44 | K82: =$C$82*J82 -> -1.57
A83: Total - Módulo 3: Provisão para Rescisão | E83: =E80+E81+E82 -> 376.31 | G83: =G80+G81+G82 -> 188.15 | I83: =I80+I81+I82 -> 188.15 | K83: =K80+K81+K82 -> 188.15
A86: MÓDULO 4: CUSTO DA REPOSIÇÃO DO PROFISSIONAL AUSENTE
A87: ITEM | B87: DESCRIÇÃO | C87: Percentual (%) | D87: =D21 -> Assistente Administrativo | F87: =F21 -> Auxiliar de Limpeza | H87: =H21 -> Copeira | J87: =J21 -> Auxiliar de Manut. Predial
D88: Valor (R$) | F88: Valor (R$) | H88: Valor (R$) | J88: Valor (R$)
D89: Anual | E89: Mensal | F89: Anual | G89: Mensal | H89: Anual | I89: Mensal | J89: Anual | K89: Mensal
A90: 4.1 | B90: Ausências Legais
A91: A | B91: Custo Diário para o Repositor | C91: - | D91: =E40+E68+E83 -> 4565.11 | E91: =(D91/30) -> 152.17 | F91: =G40+G68+G83 -> 2282.54 | G91: =(F91/30)*F23 -> 76.08 | H91: =I40+I68+I83 -> 2282.54 | I91: =(H91/30)*H23 -> 76.08 | J91: =K40+K68+K83 -> 2282.54 | K91: =(J91/30)*J23 -> 76.08
A92: B | B92: Ausências Legais | D92: =(E91*('Planilhas auxiliares'!$F$33)) -> 4441.87 | E92: =(D92/12) -> 370.16 | F92: =(G91*('Planilhas auxiliares'!$F$33)) -> 2220.79 | G92: =(F92/12)*F23 -> 185.07 | H92: =(I91*('Planilhas auxiliares'!$F$33)) -> 2220.79 | I92: =(H92/12)*H23 -> 185.07 | J92: =(K91*('Planilhas auxiliares'!$F$33)) -> 2220.79 | K92: =(J92/12)*J23 -> 185.07
A93: Total - Módulo 4: Custo Reposição Profissional Ausente | E93: =E92 -> 370.16 | G93: =G92 -> 185.07 | I93: =I92 -> 185.07 | K93: =K92 -> 185.07
A96: MÓDULO 5: INSUMOS DIVERSOS
A97: ITEM | B97: DESCRIÇÃO | D97: =D21 -> Assistente Administrativo | F97: =F21 -> Auxiliar de Limpeza | H97: =H21 -> Copeira | J97: =J31 -> Auxiliar de Manut. Predial
D98: Valor (R$) | F98: Valor (R$) | H98: Valor (R$) | J98: Valor (R$)
A99: A | B99: Uniformes | D99: ='Planilhas auxiliares'!C46 -> 92.39 | F99: ='Planilhas auxiliares'!D46 -> 32.97 | H99: ='Planilhas auxiliares'!E46 -> 53.48 | J99: ='Planilhas auxiliares'!F46 -> 30.82
A100: B | B100: Materiais | D100: ='Planilhas auxiliares'!C53 -> 0 | F100: ='Planilhas auxiliares'!D53 -> 522.2 | H100: ='Planilhas auxiliares'!E53 -> 104.2 | J100: ='Planilhas auxiliares'!F53 -> 11.52
A101: Total - Módulo 5: Insumos Diversos | E101: =SUM(D99:E100) -> 92.39 | G101: =SUM(F99:G100) -> 555.17 | I101: =SUM(H99:I100) -> 157.68 | K101: =SUM(J99:K100) -> 42.34
A104: MÓDULO 6: CUSTOS INDIRETOS, TRIBUTOS E LUCRO
A105: ITEM | B105: DESCRIÇÃO | C105: Percentual (%) | D105: =D21 -> Assistente Administrativo | F105: =F21 -> Auxiliar de Limpeza | H105: =H21 -> Copeira | J105: =J21 -> Auxiliar de Manut. Predial
D106: Valor (R$) | F106: Valor (R$) | H106: Valor (R$) | J106: Valor (R$)
D107: Unitário | E107: Total | F107: Unitário | G107: Total | H107: Unitário | I107: Total | J107: Unitário | K107: Total
A108: A | B108: Custos Indiretos (CI) | C108: 0.06 | D108: =$C$108*(E40+E68+E83+E93+E101) -> 301.66 | F108: =$C$108*(G40+G68+G83+G93+G101) -> 181.37 | H108: =$C$108*(I40+I68+I83+I93+I101) -> 157.52 | J108: =$C$108*(K40+K68+K83+K93+K101) -> 150.6
A109: B | B109: Lucro (L) | C109: 0.075 | D109: =$C$109*(E40+E68+E83+E93+E101) -> 377.07 | F109: =$C$109*(G40+G68+G83+G93+G101) -> 226.71 | H109: =$C$109*(I40+I68+I83+I93+I101) -> 196.9 | J109: =$C$109*(K40+K68+K83+K93+K101) -> 188.25
A110: C | B110: Tributos
A111: C.1 | B111: Tributos Federais (COFINS/PIS) | C111: 0.0365 | D111: =D122 -> 228 | F111: =F122 -> 137.08 | H111: 119.06 | J111: =J122 -> 113.83
A112: C.2 | B112: Tributos Municipais (ISSQN ou ISS) | C112: 0.05 | D112: =D123 -> 312.34 | F112: =F123 -> 187.79 | H112: 163.09 | J112: =J123 -> 155.93
A113: Total - Custos Indiretos, Tributos e Lucro: | E113: =SUM(D108:E112) -> 1219.07 | G113: =SUM(F108:G112) -> 732.95 | I113: =SUM(H108:I112) -> 636.57 | K113: =SUM(J108:K112) -> 608.61
A116: *QUADRO - CÁLCULO TRIBUTOS*
A117: DESCRIÇÃO | D117: =D21 -> Assistente Administrativo | F117: =F21 -> Auxiliar de Limpeza | H117: =H21 -> Copeira | J117: =J21 -> Auxiliar de Manut. Predial
D118: Valor (R$) | F118: Valor (R$) | H118: Valor (R$) | J118: Valor (R$)
A119: P0 = (MÓD 1 + MÓD 2 + MÓD 3 + MÓD 4) + (CI) + (L) | D119: =(E40+E68+E83+E93+E101)+D108+D109 -> 5706.39 | F119: =(G40+G68+G83+G93+G101)+F108+F109 -> 3430.86 | H119: =(I40+I68+I83+I93+I101)+H108+H109 -> 2979.71 | J119: =(K40+K68+K83+K93+K101)+J108+J109 -> 2848.8
A120: P1 = P0/(1 - 0,0865) | D120: =D119/(1-0.0865) -> 6246.73 | F120: =F119/(1-0.0865) -> 3755.73 | H120: =H119/(1-0.0865) -> 3261.86 | J120: =J119/(1-0.0865) -> 3118.56
A121: T = P1 - P0 | D121: =D120-D119 -> 540.34 | F121: =F120-F119 -> 324.87 | H121: 282.15 | J121: =J120-J119 -> 269.76
A122: COFINS/PIS = (3,65/8,65) x T | D122: =(3.65/8.65)*D121 -> 228 | F122: =(3.65/8.65)*F121 -> 137.08 | H122: 119.06 | J122: =(3.65/8.65)*J121 -> 113.83
A123: ISS = (5,00/8,65) x T | D123: =(5/8.65)*D121 -> 312.34 | F123: =(5/8.65)*F121 -> 187.79 | H123: =(5/8.65)*H121 -> 163.09 | J123: =(5/8.65)*J121 -> 155.93
A127: QUADRO RESUMO DO CUSTO POR EMPREGADO
A128: ITEM | B128: DESCRIÇÃO | C128: Percentual (%) | D128: =D21 -> Assistente Administrativo | F128: =F21 -> Auxiliar de Limpeza | H128: =H21 -> Copeira | J128: =J21 -> Auxiliar de Manut. Predial
D129: Valor (R$) | F129: Valor (R$) | H129: Valor (R$) | J129: Valor (R$)
A130: A | B130: Módulo 1 - Composição da Remuneração | D130: =E40 -> 2041.62 | F130: =G40 -> 1020.81 | H130: =I40 -> 1020.81 | J130: =K40 -> 1020.81
A131: B | B131: Módulo 2 - Encargos e Benefícios Anuais, Mensais e Diários | D131: =E68 -> 2147.18 | F131: =G68 -> 1073.58 | H131: =I68 -> 1073.58 | J131: =K68 -> 1073.58
A132: C | B132: Módulo 3 - Provisão para Rescisão | D132: =E83 -> 376.31 | F132: =G83 -> 188.15 | H132: =I83 -> 188.15 | J132: =K83 -> 188.15
A133: D | B133: Módulo 4 - Custo de Reposição do Profissional Ausente | D133: =E93 -> 370.16 | F133: =G93 -> 185.07 | H133: =I93 -> 185.07 | J133: =K93 -> 185.07
A134: E | B134: Módulo 5 - Insumos Diversos | D134: =E101 -> 92.39 | F134: =G101 -> 555.17 | H134: =I101 -> 157.68 | J134: =K101 -> 42.34
A135: Subtotal (A + B +C+ D+E)
A136: F | B136: Módulo 6 – Custos Indiretos, Tributos e Lucro | D136: =E113 -> 1219.07 | F136: =G113 -> 732.95 | H136: =I113 -> 636.57 | J136: =K113 -> 608.61
A137: TOTAL MENSAL POR PROFISSINAL (R$): | D137: =SUM(D130:E136) -> 6246.73 | F137: =SUM(F130:G136) -> 3755.73 | H137: =SUM(H130:I136) -> 3261.86 | J137: =SUM(J130:K136) -> 3118.56
A138: TOTAL ANUAL POR PROFISSIONAL (R$): | D138: =12*D137 -> 74960.76 | F138: =12*F137 -> 45068.76 | H138: =12*H137 -> 39142.32 | J138: =12*J137 -> 37422.72
A139: TOTAL MENSAL - CONTRATO (R$): | J139: =SUM(D137:K137) -> 16382.88
A140: TOTAL ANUAL - CONTRATO (R$): | J140: =SUM(D138:K138) -> 196594.56

Sheet Planilhas auxiliares
A5: Contratação dos serviços de auxiliar de limpeza, copeira, auxiliar de manutenção predial e assistente administrativo para apoio ao Centro de Controle e Operação do PISF - AD/GOI/CCO, localizado em Salgueiro/PE
A10: PLANILHAS AUXILIARES
A14: MÓDULO 4 - CUSTO DE REPOSIÇÃO DO PROFISSIONAL AUSENTE
A16: Porobabilidade de ocorrência de ausências legais, conforme previsão do art. 473 da Consolidação das Leis do Trabalho. | G16: ESTIMATIVA DA NECESSIDADE DE REPOSIÇÃO DE PROFISSIONAL
A18: Memória de Cálculo - número de dias de reposição do profissional ausente para cada evento
A19: Categoria | C19: Incidencia Anual | D19: Duração Legal da Ausência (dias) | E19: 40h | G19: Composição | H19: ESCALAS
E20: Proporção dias afetados | F20: Dias de reposição | H20: 40 SEM
A21: Férias | C21: 1 | D21: 30 | E21: =(252/365) -> 0.6904 | F21: =(C21*D21)*E21 -> 20.712 | G21: Férias | H21: =F21 -> 20.712
A22: Ausência justificada | C22: 1 | D22: 1 | E22: 1 | F22: 1 | G22: Ausência justificada | H22: 1
A23: Acidente trabalho | C23: 0.0922 | D23: 15 | E23: =(252/365) -> 0.6904 | F23: 0.9548 | G23: Acidente trabalho | H23: 0.9548
A24: Afastamento por doença | C24: 1 | D24: 5 | E24: =(252/365) -> 0.6904 | F24: 3.452 | G24: Afastamento por doença | H24: 3.452
A25: Consulta médica filho | C25: 0.1522 | D25: 2 | E25: 1 | F25: 0.3044 | G25: Consulta médica filho | H25: 0.3044
A26: Óbitos na família | C26: 0.0309 | D26: 2 | E26: =(252/365) -> 0.6904 | F26: 0.0427 | G26: Óbitos na família | H26: 0.0427
A27: Casamento | C27: 0.0123 | D27: 3 | E27: 1 | F27: 0.0369 | G27: Casamento | H27: 0.0369
A28: Doação de sangue | C28: 0.02 | D28: 1 | E28: 1 | F28: 0.02 | G28: Doação de sangue | H28: 0.02
A29: Testemunho | C29: 0.004 | D29: 1 | E29: 1 | F29: 0.004 | G29: Testemunho | H29: 0.004
A30: Paternidade | C30: 0.0137 | D30: 20 | E30: =(252/365) -> 0.6904 | F30: 0.1892 | G30: Paternidade | H30: 0.1892
A31: Maternidade | C31: 0.0199 | D31: 180 | E31: =(252/365) -> 0.6904 | F31: 2.473 | G31: Maternidade | H31: 2.473
A32: Consulta pré-natal | C32: 0.0002 | D32: 6 | E32: 1 | F32: 0.0012 | G32: Consulta pré-natal | H32: 0.0012
A33: TOTAL - Necessidade de Reposição do Profissinal Ausente: | F33: =SUM(F21:F32) -> 29.1902 | G33: Total Para reposição: | H33: =SUM(H21:H32) -> 29.1902
A37: MÓDULO 5 - INSUMOS DE MÃO DE OBRA
A40: UNIFORMES (Preço Cotado no Mercado)
A41: Descrição | C41: Assistente Administrativo | D41: Auxiliar de Limpeza | E41: Copeira | F41: Aux. Manut. Predial
A43: Quantidade | C43: 2 | D43: 1 | E43: 1 | F43: 1
A44: Valor Unitário - ANUAL | C44: ='Uniformes (Detalhamento)'!F22 -> 554.31 | D44: ='Uniformes (Detalhamento)'!F29 -> 395.67 | E44: ='Uniformes (Detalhamento)'!F36 -> 641.81 | F44: ='Uniformes (Detalhamento)'!F42 -> 369.8
A45: Valor Total - ANUAL | C45: =C43*C44 -> 1108.62 | D45: =D43*D44 -> 395.67 | E45: =E43*E44 -> 641.81 | F45: =F43*F44 -> 369.8
A46: Total - Uniformes (MENSAL): | C46: =C45/12 -> 92.39 | D46: =D45/12 -> 32.97 | E46: =E45/12 -> 53.48 | F46: =F45/12 -> 30.82
A48: MATERIAIS E EQUIPAMENTOS (Preço Cotado no Mercado)
A49: Descrição | C49: Assistente Administrativo | D49: Auxiliar de Limpeza | E49: Copeira | F49: Aux. Manut. Predial
A51: Quantidade | C51: 0 | D51: 1 | E51: 1 | F51: 1
A52: Valor Anual | C52: 0 | D52: ='Mat & Equip (Detalhamento)'!F62*12 -> 6266.4 | E52: ='Mat & Equip (Detalhamento)'!F97*12 -> 1250.4 | F52: ='Mat & Equip (Detalhamento)'!F114*12 -> 138.24
A53: Total - Materiais e Equipamentos (MENSAL): | C53: =(C52*C51)/12 -> 0 | D53: =(D52*D51)/12 -> 522.2 | E53: =(E52*E51)/12 -> 104.2 | F53: =(F52*F51)/12 -> 11.52

Sheet Uniformes (Detalhamento)
B1: Ministério do Desenvolvimento Regional
B2: Companhia de Desenvolvimento dos Vales do Rio São Francisco e do Parnaíba
A5: Contratação dos serviços de auxiliar de limpeza, copeira, auxiliar de manutenção predial e assistente administrativo para apoio ao Centro de Controle e Operação do PISF - AD/GOI/CCO, localizado em Salgueiro/PE
A8: PLANILHAS AUXILIARES
A10: MÓDULO 5 - INSUMOS DE MÃO DE OBRA
A12: A - UNIFORMES
A14: Relação - Uniforme - ANUAL
A15: Item | B15: Material | C15: Unidade | D15: Quantidade | E15: Valor Médio
E16: Unitário | F16: Total
A17: 1 | B17: Assistente Administrativo
A18: 1.1 | B18: Camisa (Camisa social, contendo o emblema da Contratada bordado no lado superior esquerdo ou direito) | C18: und | D18: 4 | E18: 71.33 | F18: =D18*E18 -> 285.32
A19: 1.2 | B19: Calça comprida (Calça tipo social, com zíper, na cor preta) | C19: und | D19: 2 | E19: 63.67 | F19: =D19*E19 -> 127.34
A20: 1.3 | B20: Blazer (Na cor preta, em tecido tipo microfibra, forrado internamente, inclusive na manga, com 2 (dois) bolsos inferiores, contendo o emblema da Contratada bordado no lado superior esquerdo) | C20: und | D20: 1 | E20: 68.33 | F20: =D20*E20 -> 68.33
A21: 1.4 | B21: Par de Sapato (Sapato tipo social que seja macio, palmilha de montagem em couro, solado em couro com proteção antiderrapante, salto máximo 3 cm) | C21: par | D21: 1 | E21: 73.32 | F21: =D21*E21 -> 73.32
A22: Total - Unif. Assist. Adminstrativo - Individ. Anual (R$): | F22: =SUM(F18:F21) -> 554.31
A23: 2 | B23: Auxiliar de Limpeza
A24: 2.1 | B24: Camiseta manga curta (Camiseta com gola simples, de mangas curtas, sem abotoamento, com logomarca da empresa) | C24: und | D24: 4 | E24: 28.67 | F24: =D24*E24 -> 114.68
A25: 2.2 | B25: Camiseta manga longa (Camiseta com gola simples, de mangas longas, sem abotoamento, com logomarca da empresa) | C25: und | D25: 2 | E25: 55.33 | F25: =D25*E25 -> 110.66
A26: 2.3 | B26: Calça comprida (Calça comprida com elástico e cordão, em tecido brim) | C26: und | D26: 2 | E26: 54.17 | F26: 108.34
A27: 2.4 | B27: Calçado (Botas, cano curto, solado antiderrapante, para atividades com água, hidro-repelente, com sistema de elástico, cor preto) | C27: und | D27: 1 | E27: 36.12 | F27: 36.12
A28: 2.5 | B28: Bota de Borracha (Bota de borracha para limpeza com solado antiderrapante) | C28: und | D28: 1 | E28: 25.87 | F28: 25.87
A29: Total - Unif. Auxiliar de Limpeza - Individ. Anual (R$): | F29: =SUM(F24:F28) -> 395.67
A30: 3 | B30: Copeira
A31: 3.1 | B31: Camisa (Camisa social, contendo o emblema da Contratada bordado no lado superior esquerdo ou direito) | C31: und | D31: 4 | E31: 71.33 | F31: =D31*E31 -> 285.32
A32: 3.2 | B32: Calça comprida (Calça tipo social, com zíper, na cor preta) | C32: und | D32: 2 | E32: 63.67 | F32: =D32*E32 -> 127.34
A33: 3.3 | B33: Blazer (Na cor preta, em tecido tipo microfibra, forrado internamente, inclusive na manga, com 2 (dois) bolsos inferiores, contendo o emblema da Contratada bordado no lado superior esquerdo) | C33: und | D33: 1 | E33: 68.33 | F33: =D33*E33 -> 68.33
A34: 3.4 | B34: Par de Sapato (Sapato tipo social que seja macio, palmilha de montagem em couro, solado em couro com proteção antiderrapante, salto máximo 3 cm) | C34: par | D34: 1 | E34: 73.32 | F34: =D34*E34 -> 73.32
A35: 3.5 | B35: Avental, em oxford ou tergal, branco, com amarras dos lados | C35: und | D35: 2 | E35: 43.75 | F35: =D35*E35 -> 87.5
A36: Total - Unif. Copeira - Individ. Anual (R$): | F36: =SUM(F31:F35) -> 641.81
A37: 4 | B37: Auxiliar de Manutenção Predial
A38: 4.1 | B38: Camiseta manga curta (Camiseta com gola simples, de mangas curtas, sem abotoamento, com logomarca da empresa) | C38: und | D38: 4 | E38: 28.67 | F38: =D38*E38 -> 114.68
A39: 4.2 | B39: Camiseta manga longa (Camiseta com gola simples, de mangas longas, sem abotoamento, com logomarca da empresa) | C39: und | D39: 2 | E39: 55.33 | F39: =D39*E39 -> 110.66
A40: 4.3 | B40: Calça comprida (Calça comprida com elástico e cordão, em tecido brim) | C40: und | D40: 2 | E40: 54.17 | F40: 108.34
A41: 4.4 | B41: Calçado (Botas, cano curto, solado antiderrapante, para atividades com água, hidro-repelente, com sistema de elástico, cor preto) | C41: und | D41: 1 | E41: 36.12 | F41: 36.12
A42: Total - Unif. Auxiliar de Manutenção Predial - Individ. Anual (R$): | F42: =SUM(F38:F41) -> 369.8

Sheet Mat & Equip (Detalhamento)
B1: Ministério do Desenvolvimento Regional
B2: Companhia de Desenvolvimento dos Vales do Rio São Francisco e do Parnaíba
A5: Contratação dos serviços de auxiliar de limpeza, copeira, auxiliar de manutenção predial e assistente administrativo para apoio ao Centro de Controle e Operação do PISF - AD/GOI/CCO, localizado em Salgueiro/PE
A8: PLANILHAS AUXILIARES
A10: MÓDULO 5 - INSUMOS DE MÃO DE OBRA
A12: B - MATERIAL DE CONSUMO
A14: AUXILIAR DE LIMPEZA - Relação mínima estimada de materiais de consumo – MENSAL
A15: Item | B15: Material | C15: Unidade | D15: Quantidade | E15: Valor Médio
E16: Unitário | F16: Total
A17: 1 | B17: Água sanitária, 1 litro | C17: und | D17: 5 | E17: 1.66 | F17: =D17*E17 -> 8.3
A18: 2 | B18: Álcool etílico 46 INPM, 1 litro | C18: und | D18: 2 | E18: 3.96 | F18: 7.92
A19: 3 | B19: Álcool Gel 70% antisséptico para mãos 440ml | C19: und | D19: 3 | E19: 11.91 | F19: 35.73
A20: 4 | B20: Desinfetante concentrado, galão de 5 litros | C20: und | D20: 1 | E20: 45.37 | F20: 45.37
A21: 5 | B21: Desodorizador de ar, frasco aerossol com 360 ml | C21: und | D21: 2 | E21: 7.54 | F21: 15.08
A22: 6 | B22: Esponja de espuma multiuso dupla face com manta abrasiva (3M Scotch Brite ou similar) | C22: und | D22: 4 | E22: 0.43 | F22: 1.72
A23: 7 | B23: Esponja de lã de aço (Bombril ou similar), pacote com 8 unidades | C23: und | E23: 1.85 | F23: 0
A24: 8 | B24: Flanela – 28x38 cm, cor amarela | C24: und | D24: 4 | E24: 1.63 | F24: 6.52
A25: 9 | B25: Flanela – 28x38cm, cor branca | C25: und | D25: 4 | E25: 1.46 | F25: 5.84
A26: 10 | B26: Limpa vidros concentrado, galão de 5 litros | C26: und | D26: 1 | E26: 43.15 | F26: 43.15
A27: 11 | B27: Limpador multiuso (Veja Multiuso ou similar) | C27: und | D27: 2 | E27: 2.31 | F27: 4.62
A28: 12 | B28: Lustra-móveis, frasco 200ml | C28: und | D28: 2 | E28: 3.66 | F28: 7.32
A29: 13 | B29: Luvas de látex (par) | C29: par | D29: 2 | E29: 2.72 | F29: 5.44
A30: 14 | B30: Máscara descartável PFF1 contra poeiras e névoas | C30: und | D30: 4 | E30: 1.15 | F30: 4.6
A31: 15 | B31: Papel higiênico macio, de 1ª qualidade, folha dupla picotada (Pacote com 16 rolos com 30m) | C31: und | D31: 4 | E31: 19.66 | F31: 78.64
A32: 16 | B32: Papel toalha, interfolhado, macio, hidrossolúvel, feito com 100% de celulose na cor branca – pacote com 1000 folhas | C32: pacote | D32: 4 | E32: 11.27 | F32: 45.08
A33: 17 | B33: Pastilha sanitária em pedra 25g com gancho | C33: und | D33: 12 | E33: 0.99 | F33: 11.88
A34: 18 | B34: Sabão em barra, pacote com 5 unidades de 200g (Minuano ou similar) | C34: pacote | D34: 1 | E34: 4.98 | F34: 4.98
A35: 19 | B35: Sabão em pó, 1Kg | C35: pacote | D35: 2 | E35: 6.71 | F35: 13.42
A36: 20 | B36: Sabonete líquido antisséptico, perfumado, galão de 5 litros | C36: und | D36: 1 | E36: 42.42 | F36: 42.42
A37: 21 | B37: Saco alvejado, 100% algodão, para limpeza de chão (pano de chão) | C37: und | D37: 2 | E37: 2.63 | F37: 5.26
A38: 22 | B38: Saco para lixo 200 litros com 50 unidades – reforçado | C38: pacote | D38: 1 | E38: 33.88 | F38: 33.88
A39: 23 | B39: Saco para lixo 100 litros com 100 unidades – reforçado | C39: pacote | D39: 1 | E39: 36.89 | F39: 36.89
A40: 24 | B40: Saco para lixo 30 litros com 100 unidades – reforçado | C40: pacote | D40: 1 | E40: 17.37 | F40: 17.37
A41: 25 | B41: Soda cáustica em escamas, pote 1kg | C41: und | D41: 1 | E41: 14.55 | F41: 14.55
A42: Total - Material de Consumo - Auxiliar de Limpeza - Mensal (R$): | F42: =SUM(F17:F41) -> 495.98
A44: AUXILIAR DE LIMPEZA - Relação mínima estimada de materiais de consumo – ANUAL
A45: Item | B45: Material | C45: Unidade | D45: Quantidade | E45: Valor Médio
E46: Unitário | F46: Total
A47: 1 | B47: Balde plástico reforçado de 12 litros | C47: und | D47: 4 | E47: 8.07 | F47: =D47*E47 -> 32.28
A48: 2 | B48: Escova de mão, com cerdas de nylon | C48: und | D48: 4 | E48: 3.63 | F48: =D48*E48 -> 14.52
A49: 3 | B49: Escova sanitária com cerdas de nylon em formato circular, para higienização de vaso sanitário, com suporte | C49: und | D49: 6 | E49: 8.06 | F49: 48.36
A50: 4 | B50: Espanador de pó, médio, 30cm | C50: und | D50: 3 | E50: 15.75 | F50: 47.25
A51: 5 | B51: Luva de raspa, cano curto (par) | C51: par | D51: 1 | E51: 6.11 | F51: 6.11
A52: 6 | B52: Luva tricotada pigmentada (par) | C52: par | D52: 1 | E52: 2.49 | F52: 2.49
A53: 7 | B53: Pá para lixo com cabo longo | C53: und | D53: 2 | E53: 3.73 | F53: 7.46
A54: 8 | B54: Rodo limpa vidros com cabo longo | C54: und | D54: 1 | E54: 39.33 | F54: 39.33
A55: 9 | B55: Rodo, com 40 cm de largura, com cabo | C55: und | D55: 4 | E55: 5.93 | F55: 23.72
A56: 10 | B56: Vassoura de nylon, 30 cm, com cabo | C56: und | D56: 2 | E56: 9.58 | F56: 19.16
A57: 11 | B57: Vassoura de pelo sintético, 40 cm, com cabo | C57: und | D57: 4 | E57: 11.91 | F57: 47.64
A58: 12 | B58: Vassoura limpa teto (vasculhar), com cabo de 2 metros | C58: und | D58: 1 | E58: 26.29 | F58: 26.29
A59: Total - Material de Consumo - Auxiliar de Limpeza - Anual (R$): | F59: =SUM(F47:F58) -> 314.61
A60: Total Proporcional Mensal: | F60: =F59/12 -> 26.22
A62: Total Geral - Material de Consumo - AUXILIAR DE LIMPEZA - MENSAL (R$): | F62: =F42+F60 -> 522.2
A65: COPEIRA - Relação mínima estimada de materiais de consumo – MENSAL
A66: Item | B66: Material | C66: Unidade | D66: Quantidade | E66: Valor Médio
E67: Unitário | F67: Total
A68: 1 | B68: Açúcar cristal (pct 1 Kg) | C68: pct | D68: 2 | E68: 2.99 | F68: =D68*E68 -> 5.98
A69: 2 | B69: Adoçante líquido, frasco 100ml | C69: und | D69: 1 | E69: 1.74 | F69: 1.74
A70: 3 | B70: Água sanitária, 1 litro | C70: und | D70: 1 | E70: 1.66 | F70: 1.66
A71: 4 | B71: Álcool etílico 46 INPM, 1 litro | C71: und | D71: 1 | E71: 3.96 | F71: 3.96
A72: 5 | B72: Café torrado e moído (pct 250g) | C72: pct | D72: 8 | E72: 5.12 | F72: 40.96
A73: 6 | B73: Copo descartável 180ml para água, pacote com 100 | C73: pct | D73: 4 | E73: 3.36 | F73: 13.44
A74: 7 | B74: Copo descartável 50ml para café, pacote com 100 | C74: pct | D74: 1 | E74: 2.15 | F74: 2.15
A75: 8 | B75: Detergente líquido neutro biodegradável, lava-louças, 500 ml (Minuano ou similar) | C75: und | D75: 4 | E75: 1.36 | F75: 5.44
A76: 9 | B76: Esponja de espuma multiuso dupla face com manta abrasiva (3M Scote Brite ou similar) | C76: und | D76: 2 | E76: 0.43 | F76: 0.86
A77: 10 | B77: Esponja de lã de aço (Bombril ou similar), pacote com 8 unidades | C77: pct | D77: 1 | E77: 1.85 | F77: 1.85
A78: 11 | B78: Flanela – 28x38cm, cor branca | C78: und | D78: 1 | E78: 1.46 | F78: 1.46
A79: 12 | B79: Guardanapo de papel, 20 x 20cm, pct com 50 | C79: und | D79: 4 | E79: 1.42 | F79: 5.68
A80: 13 | B80: Limpador multiuso (Veja Multiuso ou similar), frasco 500ml | C80: und | D80: 1 | E80: 2.31 | F80: 2.31
A81: 14 | B81: Pano de prato, 100% algodão | C81: und | D81: 1 | E81: 2.38 | F81: 2.38
A82: 15 | B82: Sabão em pó, 1 kg | C82: und | D82: 1 | E82: 6.71 | F82: 6.71
A83: Total - Material de Consumo - Copeira - Mensal (R$): | F83: =SUM(F68:F82) -> 96.58
A85: COPEIRA - Relação mínima estimada de materiais de consumo – ANUAL
A86: Item | B86: Material | C86: Unidade | D86: Quantidade | E86: Valor Médio
E87: Unitário | F87: Total
A88: 1 | B88: Balde plástico reforçado de 12 litros | C88: und | D88: 2 | E88: 8.07 | F88: =D88*E88 -> 16.14
A89: 2 | B89: Coador de café de pano | C89: und | D89: 12 | E89: 2.38 | F89: =D89*E89 -> 28.56
A90: 3 | B90: Rodo de pia | C90: und | D90: 2 | E90: 3.67 | F90: =D90*E90 -> 7.34
A91: 4 | B91: Rodo, com 40 cm de largura, com cabo | C91: und | D91: 2 | E91: 5.93 | F91: 11.86
A92: 5 | B92: Saco alvejado, 100% algodão, para limpeza de chão (pano de chão) | C92: und | D92: 6 | E92: 2.63 | F92: 15.78
A93: 6 | B93: Suporte para sabão, esponja e detergente | C93: und | D93: 1 | E93: 11.79 | F93: 11.79
A94: Total - Material de Consumo - Copeira - Anual (R$): | F94: =SUM(F88:F93) -> 91.47
A95: Total Proporcional Mensal: | F95: =F94/12 -> 7.62
A97: Total Geral - Material de Consumo - COPEIRA - MENSAL (R$): | F97: =F83+F95 -> 104.2
A100: AUXILIAR DE MANUTENÇÃO PREDIAL - Relação mínima estimada de equipamentos - VIDA ÚTIL 60 MESES
A101: Item | B101: Equipamento/Utensílio | C101: Unidade | D101: Quantidade | E101: Valor Médio
E102: Unitário | F102: Total
A103: 1 | B103: Enxada com cabo | C103: und | D103: 1 | E103: 19.99 | F103: =D103*E103 -> 19.99
A104: 2 | B104: Escada metálica tipo tesoura - 4 degraus | C104: und | D104: 1 | E104: 93.78 | F104: =D104*E104 -> 93.78
A105: 3 | B105: Escada metálica tipo tesoura - 9 degraus | C105: und | D105: 1 | E105: 207.93 | F105: 207.93
A106: 4 | B106: Lixeira container com rodas, capacidade 100 litros | C106: und | D106: 1 | E106: 191.23 | F106: 191.23
A107: 5 | B107: Mangueira para jardim 3/4" com 50 metros em PVC / poliéster trançado | C107: und | D107: 1 | E107: 113.7 | F107: 113.7
A108: 6 | B108: Tesoura de poda | C108: und | D108: 1 | E108: 16.8 | F108: 16.8
A109: 7 | B109: Tesoura para cerca viva/grama, lâminas lisas, cabo de madeira | C109: und | D109: 1 | E109: 20.2 | F109: 20.2
A110: 8 | B110: Vassoura tipo ancinho metálica, 18 a 22 dentes, cabo de madeira | C110: und | D110: 1 | E110: 27.65 | F110: 27.65
A111: Total - Equipamentos/Utensílios - Auxiliar de Manutenção Predial - 60 Meses (R$): | F111: =SUM(F103:F110) -> 691.28
A112: Total Proporcional Mensal (1/60): | F112: =F111/60 -> 11.52
A114: Total Geral - Equipamentos/ Utensílios - AUXILIAR DE MANUTENÇÃO PREDIAL - MENSAL (R$): | F114: =F112 -> 11.52
